bitfinex-derivatives/quotes_SOLF0:USTF0_20250630
["timestamp","ask_amount","ask_price","bid_price","bid_amount"]
[1751270883838,5.3028,150.83,150.8,6.16751407]
[1751270884344,130.78,150.83,150.77,6.16751407]
[1751270884643,135.3387,150.83,150.76,6.16751407]
[1751270884938,137.586,150.83,150.76,6.16751407]
[1751270886040,137.586,150.83,150.75,6.16751407]
[1751270886240,5.3044,150.78,150.75,6.16751407]
[1751270886543,34.94,150.79,150.75,6.16751407]
[1751270887542,40.2442,150.79,150.75,11.47301407]
[1751270887836,40.2442,150.79,150.75,5.3055]
[1751270889041,40.2442,150.79,150.76,5.71593351]
[1751270889241,40.2442,150.79,150.77,5.71593351]
[1751270889438,40.2442,150.79,150.75,5.3055]
[1751270889638,40.2442,150.79,150.76,5.71354276]
[1751270889842,40.2442,150.79,150.77,5.71354276]
[1751270890146,40.2442,150.79,150.75,5.3055]
[1751270890440,34.94,150.79,150.76,11.01596126]
[1751270890641,34.94,150.79,150.77,5.71086126]
[1751270890842,34.94,150.79,150.78,5.71086126]
[1751270891338,34.94,150.79,150.74,6.16751407]
[1751270891544,40.2441,150.79,150.75,11.01379871]
[1751270891842,40.2441,150.79,150.76,5.70849871]
[1751270892043,40.2441,150.79,150.77,5.70849871]
[1751270892243,40.2441,150.79,150.75,5.3053]
[1751270892443,40.2441,150.79,150.76,5.70714699]
[1751270892644,40.2441,150.79,150.77,5.70714699]
[1751270892844,40.2441,150.79,150.75,5.3053]
[1751270893044,40.2441,150.79,150.76,5.70654533]
[1751270893241,5.3044,150.78,150.77,5.70654533]
[1751270893445,34.94,150.79,150.77,5.70654533]
[1751270893648,34.94,150.79,150.74,6.16751407]
[1751270893847,5.3046,150.78,150.75,5.70446677]
[1751270894042,5.3046,150.78,150.76,5.70446677]
[1751270894241,5.3046,150.78,150.77,5.70446677]
[1751270894441,5.3051,150.76,150.73,5.306]
[1751270894749,34.94,150.79,150.74,5.70490433]
[1751270894946,34.94,150.79,150.75,5.70490433]
[1751270895148,5.3048,150.77,150.76,5.70490433]
[1751270896152,5.3048,150.77,150.74,5.3058]
[1751270896454,5.3048,150.77,150.75,5.70199354]
[1751270896645,5.3048,150.77,150.74,5.3058]
[1751270896847,5.3048,150.77,150.75,5.70278531]
[1751270897152,5.3048,150.77,150.73,5.306]
[1751270897351,5.3048,150.77,150.74,5.70182725]
[1751270897650,5.3048,150.77,150.75,5.70182725]
[1751270897850,5.3048,150.77,150.73,5.306]
[1751270898052,5.3048,150.77,150.74,5.70661508]
[1751270898249,5.3048,150.77,150.75,5.70661508]
[1751270898554,5.3048,150.77,150.73,5.306]
[1751270898745,5.3048,150.77,150.74,5.7053408]
[1751270898942,5.3048,150.77,150.75,5.7053408]
[1751270899253,5.3048,150.77,150.73,5.306]
[1751270899458,5.3048,150.77,150.74,5.70423349]
[1751270899654,5.3051,150.76,150.73,5.306]
[1751270899958,34.94,150.79,150.74,5.70470217]
[1751270900151,34.94,150.79,150.72,5.3064]
[1751270900344,34.94,150.79,150.73,5.70691893]
[1751270900549,34.94,150.79,150.7,6.672]
[1751270900748,34.94,150.79,150.71,5.70683846]
[1751270900948,34.94,150.79,150.72,5.70683846]
[1751270901153,34.94,150.79,150.7,6.672]
[1751270901451,34.94,150.79,150.71,5.7053089]
[1751270901649,5.3057,150.75,150.72,5.7053089]
[1751270901949,39.8257,150.75,150.71,5.3067]
[1751270902150,39.8257,150.75,150.72,5.7053152]
[1751270902353,39.8257,150.75,150.71,5.3067]
[1751270902553,39.8257,150.75,150.72,5.70402658]
[1751270902751,39.8257,150.75,150.71,5.3067]
[1751270902954,5.3059,150.74,150.72,5.71814733]
[1751270903156,5.3059,150.74,150.7,11.9791]
[1751270903355,34.52,150.75,150.71,5.71683465]
[1751270903655,34.52,150.75,150.7,5.3071]
[1751270903656,5.3062,150.74,150.7,5.3071]
[1751270903855,5.3062,150.74,150.71,5.71753164]
[1751270904057,5.3062,150.74,150.7,5.3071]
[1751270904256,5.3062,150.74,150.71,5.71611027]
[1751270904456,5.3062,150.74,150.7,5.3071]
[1751270904656,5.3062,150.74,150.71,5.71619399]
[1751270904856,5.3062,150.74,150.7,5.3071]
[1751270905057,5.3062,150.74,150.71,5.71624434]
[1751270905357,5.3062,150.74,150.7,5.3071]
[1751270905557,5.3062,150.74,150.71,5.71473166]
[1751270905855,34.52,150.75,150.69,5.3075]
[1751270906058,34.52,150.75,150.7,5.7138367]
[1751270906248,5.3065,150.72,150.68,5.3079]
[1751270906448,34.52,150.75,150.69,5.71394174]
[1751270906646,34.52,150.75,150.65,6.8221]
[1751270906846,4.4518,150.74,150.66,5.71549566]
[1751270907057,134.7918,150.74,150.65,6.8221]
[1751270907260,134.7918,150.74,150.64,34.52]
[1751270907261,137.0514,150.74,150.66,5.7140066]
[1751270907557,137.0514,150.74,150.62,6.16751407]
[1751270907759,137.0514,150.74,150.63,5.71423677]
[1751270907958,137.0514,150.74,150.64,5.71423677]
[1751270908153,137.0514,150.74,150.65,5.71423677]
[1751270908353,137.0514,150.74,150.62,6.16751407]
[1751270908553,5.3078,150.69,150.65,5.309]
[1751270908756,39.8278,150.69,150.65,5.309]
[1751270909960,5.3079,150.68,150.65,5.309]
[1751270910360,34.52,150.69,150.65,5.309]
[1751270911561,39.8277,150.69,150.65,5.309]
[1751270913361,39.8277,150.69,150.61,47.57491407]
[1751270913362,34.52,150.69,150.61,47.57491407]
[1751270913658,34.52,150.69,150.62,5.73471399]
[1751270913861,5.3088,150.66,150.63,5.73471399]
[1751270914061,5.3088,150.66,150.61,41.4074]
[1751270914367,34.52,150.69,150.63,5.3097]
[1751270914662,5.3085,150.67,150.63,5.3097]
[1751270914850,34.52,150.69,150.63,5.3097]
[1751270915054,34.52,150.69,150.61,41.4074]
[1751270915256,34.52,150.69,150.62,5.73298401]
[1751270915458,34.52,150.69,150.61,4.6385]
[1751270915658,34.52,150.69,150.62,5.73369067]
[1751270915858,34.52,150.69,150.61,4.6385]
[1751270916058,34.52,150.69,150.62,5.73369365]
[1751270916253,34.52,150.69,150.61,2.3283]
[1751270916449,34.52,150.69,150.62,5.73281782]
[1751270916648,34.52,150.69,150.62,5.31]
[1751270917458,5.3085,150.67,150.63,5.73263204]
[1751270917660,5.3085,150.67,150.62,5.31]
[1751270917860,5.3085,150.67,150.63,5.73263204]
[1751270918062,5.3085,150.67,150.62,5.31]
[1751270918261,5.3085,150.67,150.63,5.74481364]
[1751270918465,5.3085,150.67,150.62,5.31]
[1751270918861,5.3087,150.66,150.62,5.31]
[1751270921465,5.3087,150.66,150.63,5.7461918]
[1751270921665,5.3087,150.66,150.62,5.31]
[1751270921960,5.3087,150.66,150.63,5.74619777]
[1751270924370,5.309,150.65,150.62,5.31]
[1751270925266,5.3094,150.64,150.61,5.3102]
[1751270925567,5.3094,150.64,150.62,5.75137703]
[1751270925770,5.3098,150.63,150.58,34.52]
[1751270925962,5.3098,150.63,150.59,5.75187748]
[1751270926159,5.3098,150.63,150.6,5.75187748]
[1751270926371,5.3098,150.63,150.61,5.75187748]
[1751270926565,5.3098,150.63,150.57,13.05891407]
[1751270926566,5.3098,150.63,150.59,5.311]
[1751270926868,34.54,150.65,150.59,5.311]
[1751270927472,34.54,150.65,150.58,5.3113]
[1751270927676,34.54,150.65,150.59,5.75296758]
[1751270927876,5.3103,150.62,150.58,5.3113]
[1751270928078,5.3103,150.62,150.59,5.75297078]
[1751270928281,34.54,150.65,150.6,5.75297078]
[1751270928478,5.3103,150.62,150.58,5.3113]
[1751270928677,5.3103,150.62,150.59,5.7672291]
[1751270928977,5.3103,150.62,150.58,5.3113]
[1751270929174,34.54,150.65,150.58,5.3113]
[1751270930180,5.3103,150.62,150.58,5.3113]
[1751270930379,34.1,150.61,150.57,5.3117]
[1751270930579,34.1,150.61,150.58,5.76693477]
[1751270930779,34.1,150.61,150.57,5.3117]
[1751270930980,34.1,150.61,150.58,5.76693477]
[1751270931181,34.1,150.61,150.58,5.3114]
[1751270931182,39.4106,150.61,150.58,5.3114]
[1751270932181,39.4106,150.61,150.57,5.3117]
[1751270932381,39.4106,150.61,150.58,5.76518246]
[1751270932581,39.4106,150.61,150.57,5.3117]
[1751270932783,39.4106,150.61,150.58,5.76518246]
[1751270932983,39.4106,150.61,150.57,5.3117]
[1751270933181,39.4106,150.61,150.58,5.76518246]
[1751270933378,39.4106,150.61,150.57,5.3117]
[1751270933578,39.4106,150.61,150.58,5.76461707]
[1751270933877,39.4106,150.61,150.57,5.3117]
[1751270934182,39.4106,150.61,150.58,5.76461707]
[1751270934383,39.4106,150.61,150.57,5.3117]
[1751270934579,39.4106,150.61,150.58,5.7689003]
[1751270934781,39.4106,150.61,150.57,5.3117]
[1751270934977,5.3108,150.6,150.58,5.7689003]
[1751270935180,5.3108,150.6,150.57,5.3117]
[1751270935381,5.3108,150.6,150.58,5.76893688]
[1751270935680,5.3108,150.6,150.57,5.3117]
[1751270935880,5.3108,150.6,150.58,5.76893688]
[1751270936081,5.3108,150.6,150.57,5.3117]
[1751270936284,5.3108,150.6,150.58,5.76949454]
[1751270936485,5.3108,150.6,150.57,5.3117]
[1751270936684,5.3108,150.6,150.58,5.76949418]
[1751270936981,5.3108,150.6,150.57,5.3117]
[1751270937182,5.3108,150.6,150.58,5.76949418]
[1751270937385,5.3108,150.6,150.57,5.3117]
[1751270937586,5.3108,150.6,150.58,5.77037859]
[1751270937787,4.4783,150.67,150.55,34.1]
[1751270937986,34.12,150.66,150.56,5.7699315]
[1751270938287,5.3105,150.61,150.58,5.3113]
[1751270938587,5.3105,150.61,150.59,5.77148358]
[1751270938879,5.3105,150.61,150.58,5.3113]
[1751270939086,5.3105,150.61,150.59,5.77148358]
[1751270939286,5.3105,150.61,150.58,5.3113]
[1751270939486,5.3105,150.61,150.59,5.77270459]
[1751270939689,34.12,150.66,150.56,6.16751407]
[1751270939890,34.12,150.66,150.58,6.16751407]
[1751270940181,39.4287,150.66,150.59,52.82187178]
[1751270940385,39.4287,150.66,150.6,5.77285771]
[1751270940582,39.4287,150.66,150.61,5.77285771]
[1751270940782,39.4287,150.66,150.62,11.08265771]
[1751270940987,39.4287,150.66,150.63,5.77285771]
[1751270941189,39.4287,150.66,150.59,47.04901407]
[1751270941383,39.4287,150.66,150.6,5.77445601]
[1751270941586,39.4287,150.66,150.61,5.77445601]
[1751270941782,39.4287,150.66,150.62,5.77445601]
[1751270941988,34.12,150.66,150.63,5.77445601]
[1751270942187,34.12,150.66,150.6,6.16751407]
[1751270942389,34.12,150.66,150.61,5.77723078]
[1751270942584,34.12,150.66,150.62,5.77723078]
[1751270942786,34.12,150.66,150.63,5.77723078]
[1751270942986,34.12,150.66,150.6,6.16751407]
[1751270943286,34.12,150.66,150.61,5.7778501]
[1751270943485,34.12,150.66,150.62,5.7778501]
[1751270943684,39.4287,150.66,150.63,11.0874501]
[1751270943888,39.4287,150.66,150.63,5.3096]
[1751270945793,34.12,150.66,150.6,6.16751407]
[1751270945995,34.12,150.66,150.61,5.7684727]
[1751270946292,34.12,150.66,150.57,6.16751407]
[1751270946488,34.12,150.66,150.58,5.77357866]
[1751270946688,2.3754,150.65,150.59,5.77357866]
[1751270946893,5.3102,150.62,150.6,5.77357866]
[1751270947089,5.3102,150.62,150.58,5.3112]
[1751270947391,5.3102,150.62,150.59,5.77604237]
[1751270947590,5.3102,150.62,150.6,5.77604237]
[1751270947790,5.3102,150.62,150.58,5.3112]
[1751270947992,5.3102,150.62,150.59,5.77604237]
[1751270948191,5.3102,150.62,150.6,5.77604237]
[1751270948393,5.3102,150.62,150.58,5.3112]
[1751270948690,5.3102,150.62,150.59,5.78307155]
[1751270948895,5.3102,150.62,150.6,5.78307155]
[1751270949089,5.3102,150.62,150.58,5.3112]
[1751270949090,5.3102,150.62,150.61,5.78311958]
[1751270950788,2.3754,150.65,150.57,6.16751407]
[1751270950789,5.3106,150.61,150.57,6.16751407]
[1751270950989,5.3106,150.61,150.58,5.78874812]
[1751270951190,5.3106,150.61,150.59,5.78874812]
[1751270951387,5.3106,150.61,150.6,5.78874812]
[1751270952790,34.12,150.62,150.53,53.19926822]
[1751270952791,5.3115,150.58,150.56,6.16751407]
[1751270953093,2.2047,150.61,150.55,6.16751407]
[1751270953293,5.3118,150.58,150.54,6.16751407]
[1751270954000,5.3118,150.58,150.54,11.48031407]
[1751270954894,5.3118,150.58,150.54,5.3128]
[1751270955296,5.3119,150.57,150.53,11.48061407]
[1751270956296,5.3122,150.56,150.53,6.16751407]
[1751270956505,5.3122,150.56,150.52,11.48091407]
[1751270959205,5.3122,150.56,150.53,5.3132]
[1751270959403,5.3119,150.57,150.53,5.3132]
[1751270961400,5.3124,150.56,150.52,11.48081407]
[1751270961904,5.3124,150.56,150.52,6.16751407]
[1751270962400,5.3119,150.57,150.53,5.313]
[1751270962904,5.3119,150.57,150.54,5.3127]
[1751270964605,597.54,150.63,150.53,6.16751407]
[1751270964896,33.96,150.61,150.55,6.16751407]
[1751270965101,33.96,150.61,150.56,11.95179839]
[1751270965303,39.2705,150.61,150.58,5.3112]
[1751270965502,39.2705,150.61,150.59,5.78428432]
[1751270965704,39.2705,150.61,150.6,5.78428432]
[1751270967405,33.96,150.61,150.6,5.78428432]
[1751270971008,39.2704,150.61,150.6,5.78428432]
[1751270971609,33.96,150.61,150.6,5.78428432]
[1751270972612,39.2704,150.61,150.6,5.78428432]
[1751270973711,33.96,150.61,150.6,5.78428432]
[1751270977411,39.2704,150.61,150.6,5.78428432]
[1751270979513,33.96,150.61,150.6,5.78428432]
[1751270982411,5.3098,150.63,150.6,5.78428432]
[1751270982617,5.3098,150.63,150.61,5.78428432]
[1751270982816,5.3098,150.63,150.59,5.3109]
[1751270983117,5.3098,150.63,150.6,5.7633017]
[1751270983314,5.3098,150.63,150.61,5.7633017]
[1751270983515,5.3098,150.63,150.59,5.3109]
[1751270983722,5.3098,150.63,150.6,5.76319482]
[1751270983917,5.3098,150.63,150.61,5.76319482]
[1751270984217,5.3098,150.63,150.59,5.3109]
[1751270984419,5.3098,150.63,150.6,5.76319031]
[1751270984617,5.3098,150.63,150.61,5.76319031]
[1751270984818,5.3098,150.63,150.59,5.3109]
[1751270985019,5.3098,150.63,150.6,5.76319031]
[1751270985317,5.3098,150.63,150.61,5.76319031]
[1751270985518,5.3098,150.63,150.62,5.76319031]
[1751270993420,168.9296,150.64,150.62,5.76319031]
[1751270993626,168.9096,150.64,150.63,5.76319031]
[1751271008044,33.96,150.64,150.63,5.76319031]
[1751271011844,39.2693,150.64,150.63,5.76319031]
[1751271013735,5.3102,150.62,150.59,6.16751407]
[1751271013941,5.3102,150.62,150.6,5.76294266]
[1751271014137,5.3102,150.62,150.61,5.76294266]
[1751271021553,33.96,150.64,150.61,5.76294266]
[1751271021755,33.96,150.64,150.62,5.76294266]
[1751271021953,33.96,150.64,150.63,5.76294266]
[1751271022653,39.2694,150.64,150.63,5.76294266]
[1751271024748,168.8094,150.64,150.63,5.76294266]
[1751271027256,5.3105,150.61,150.59,6.16751407]
[1751271027554,163.5,150.64,150.6,5.78578381]
[1751271027753,163.5,150.64,150.61,5.78578381]
[1751271027955,5.3097,150.63,150.62,5.78578381]
[1751271038761,33.96,150.64,150.62,5.78578381]
[1751271038964,33.96,150.64,150.63,5.78578381]
[1751271039256,163.46,150.64,150.63,5.78578381]
[1751271040861,5.3093,150.64,150.63,5.78578381]
[1751271041063,134.8093,150.64,150.63,5.78578381]
[1751271041261,4.5809,150.71,150.63,5.78578381]
[1751271041463,163.36,150.68,150.64,5.78578381]
[1751271041765,129.48,150.67,150.65,5.78578381]
[1751271042061,129.48,150.67,150.66,5.78578381]
[1751271043162,33.88,150.68,150.66,5.78578381]
[1751271043355,5.3089,150.66,150.62,11.47741407]
[1751271043556,5.3089,150.66,150.63,5.76534735]
[1751271043757,5.3089,150.66,150.64,5.76534735]
[1751271044053,5.3089,150.66,150.65,5.76534735]
[1751271047765,134.7689,150.66,150.65,5.76534735]
[1751271055773,5.3099,150.63,150.61,6.16751407]
[1751271056070,129.4,150.62,150.61,6.16751407]
[1751271056267,129.4,150.62,150.61,11.92059743]
[1751271057477,134.71,150.62,150.61,11.92059743]
[1751271059580,129.4,150.62,150.61,11.92059743]
[1751271073783,33.8,150.65,150.61,17.23099743]
[1751271073988,33.8,150.65,150.62,5.75308336]
[1751271074192,33.8,150.65,150.63,5.75308336]
[1751271074492,39.109,150.65,150.64,5.75308336]
[1751271098902,33.8,150.65,150.62,6.22198057]
[1751271100507,5.3097,150.63,150.62,6.22198057]
[1751271102310,5.3104,150.61,150.6,8.21091215]
[1751271102512,38.4975,150.65,150.59,8.21091215]
[1751271103112,5.3108,150.6,150.58,8.21091215]
[1751271103306,4.44915176,150.59,150.58,8.21091215]
[1751271104217,4.44915176,150.59,150.57,8.21091215]
[1751271104416,5.3108,150.6,150.57,8.21091215]
[1751271104715,4.44828225,150.59,150.57,8.21091215]
[1751271104915,9.58573292,150.6,150.57,8.21091215]
[1751271105111,4.44828225,150.59,150.57,8.21091215]
[1751271105312,5.3108,150.6,150.57,8.21091215]
[1751271105513,9.75874753,150.59,150.57,8.21091215]
[1751271105715,5.3111,150.59,150.57,8.21091215]
[1751271108215,5.3115,150.58,150.57,8.21091215]
[1751271108420,33.7,150.61,150.48,2.1598]
[1751271108617,38.3737,150.6,150.48,2.1598]
[1751271108914,5.3126,150.55,150.48,2.1598]
[1751271109116,5.3126,150.55,150.48,35.8598]
[1751271109311,5.3126,150.55,150.51,5.3139]
[1751271109520,5.313,150.54,150.48,35.8598]
[1751271109718,33.7,150.56,150.5,5.3141]
[1751271110121,5.3131,150.54,150.5,5.3141]
[1751271110329,33.7,150.56,150.5,5.3141]
[1751271110620,5.3134,150.53,150.5,5.3141]
[1751271110819,33.7,150.56,150.48,35.8598]
[1751271110820,33.7,150.56,150.51,5.54962768]
[1751271111017,33.7,150.56,150.52,5.54962768]
[1751271111216,5.3129,150.54,150.53,5.54962768]
[1751271112317,33.7,150.56,150.48,7.4746]
[1751271112318,5.3134,150.53,150.48,7.4746]
[1751271112510,5.3134,150.53,150.49,5.5409117]
[1751271112715,5.3134,150.53,150.5,5.5409117]
[1751271112914,5.3134,150.53,150.51,5.5409117]
[1751271113122,5.3134,150.53,150.52,5.5409117]
[1751271114619,5.3139,150.52,150.48,2.1598]
[1751271114825,5.3139,150.52,150.49,5.56233712]
[1751271115130,5.3139,150.51,150.5,5.56233712]
[1751271115518,5.3137,150.52,150.47,5.3151]
[1751271115718,5.3137,150.52,150.48,5.55906538]
[1751271115918,33.62,150.52,150.45,5.3158]
[1751271116122,33.62,150.52,150.46,5.55987145]
[1751271116423,33.62,150.52,150.43,40.5265]
[1751271116625,5.3149,150.49,150.44,10.87126171]
[1751271116824,5.3149,150.49,150.45,5.55506171]
[1751271117126,33.62,150.52,150.46,5.55506171]
[1751271117417,33.62,150.52,150.45,5.3159]
[1751271117824,5.3147,150.49,150.45,5.3159]
[1751271118224,33.62,150.52,150.44,5.3163]
[1751271118526,5.3151,150.48,150.45,5.56941967]
[1751271118722,5.3151,150.48,150.44,5.3163]
[1751271118928,5.3151,150.48,150.45,5.56941967]
[1751271119128,5.3151,150.48,150.44,5.3163]
[1751271120627,5.3147,150.49,150.45,5.316]
[1751271120828,33.62,150.52,150.45,5.316]
[1751271121229,33.62,150.52,150.44,5.3163]
[1751271121822,5.3154,150.47,150.43,12.2231]
[1751271122325,33.64,150.48,150.43,12.2231]
[1751271123028,5.3156,150.47,150.43,12.2231]
[1751271124832,5.3157,150.46,150.43,12.2231]
[1751271125731,5.3155,150.47,150.43,12.2231]
[1751271126333,5.3155,150.47,150.44,5.3164]
[1751271127534,5.3157,150.46,150.43,12.2231]
[1751271129336,5.3155,150.47,150.43,12.2231]
[1751271131239,38.9551,150.48,150.43,6.9065]
[1751271131739,5.3154,150.47,150.44,5.3162]
[1751271136444,5.3151,150.48,150.44,5.3162]
[1751271137343,5.3157,150.47,150.44,5.3163]
[1751271137540,5.3157,150.47,150.43,6.9065]
[1751271137740,33.64,150.5,150.43,6.9065]
[1751271138143,5.3156,150.47,150.43,12.223]
[1751271139645,5.3157,150.46,150.43,12.223]
[1751271141240,5.3162,150.45,150.42,5.317]
[1751271143449,33.64,150.5,150.4,33.62]
[1751271143652,33.64,150.5,150.41,5.56942686]
[1751271143949,33.64,150.5,150.42,5.56942686]
[1751271144249,33.64,150.5,150.4,33.62]
[1751271144450,33.64,150.5,150.41,5.57153279]
[1751271144651,33.64,150.5,150.42,5.57153279]
[1751271144851,33.64,150.5,150.41,5.3172]
[1751271145149,33.64,150.5,150.42,5.57153279]
[1751271145451,5.3164,150.44,150.4,38.9376]
[1751271145648,33.56,150.46,150.41,5.57427688]
[1751271145950,5.3166,150.44,150.41,5.3174]
[1751271146752,33.56,150.46,150.39,4.4669]
[1751271146941,33.56,150.46,150.4,5.57702379]
[1751271147148,33.56,150.46,150.41,5.57702379]
[1751271147349,33.56,150.46,150.39,4.4669]
[1751271147548,33.56,150.46,150.4,5.57965493]
[1751271147749,33.56,150.46,150.41,5.57965493]
[1751271147948,33.56,150.46,150.42,5.57965493]
[1751271148147,33.56,150.46,150.43,5.57965493]
[1751271148349,5.3163,150.45,150.41,5.3174]
[1751271148650,5.3163,150.45,150.42,5.5915383]
[1751271148852,5.3163,150.45,150.43,5.5915383]
[1751271149048,5.3163,150.45,150.42,5.3169]
[1751271149353,5.3163,150.45,150.43,5.5915383]
[1751271149552,5.3163,150.45,150.42,5.3169]
[1751271149753,5.3163,150.45,150.43,5.59493178]
[1751271149950,5.3163,150.45,150.42,5.3169]
[1751271150151,5.3163,150.45,150.43,5.59493178]
[1751271150348,5.3163,150.45,150.44,5.59493178]
[1751271151051,5.3163,150.45,150.42,5.317]
[1751271151255,5.3163,150.45,150.43,5.59898949]
[1751271151556,5.3163,150.45,150.44,5.59898949]
[1751271152459,5.3168,150.43,150.4,5.3177]
[1751271152653,33.56,150.46,150.41,5.60965038]
[1751271152856,33.56,150.46,150.42,5.60965038]
[1751271153048,5.3166,150.44,150.43,5.60965038]
[1751271160465,5.3174,150.42,150.38,8.19259015]
[1751271160660,33.56,150.46,150.38,8.19259015]
[1751271161464,5.3174,150.42,150.38,5.3183]
[1751271162367,5.3175,150.41,150.38,11.52778869]
[1751271164672,5.3175,150.41,150.38,11.52778869]
[1751271167574,5.3175,150.41,150.38,6.20948869]
[1751271167773,5.3179,150.4,150.38,6.20948869]
[1751271168473,5.3174,150.42,150.38,6.20948869]
[1751271169277,5.3174,150.42,150.39,5.3181]
[1751271169772,5.3175,150.41,150.38,6.20948869]
[1751271170075,33.56,150.46,150.38,6.20948869]
[1751271170475,5.3177,150.41,150.37,6.20948869]
[1751271170676,5.3177,150.41,150.38,5.3184]
[1751271172071,33.58,150.42,150.37,6.20948869]
[1751271172277,33.58,150.41,150.34,6.20948869]
[1751271172476,33.58,150.41,150.35,5.60528646]
[1751271172477,33.58,150.4,150.35,5.60528646]
[1751271172774,33.58,150.4,150.34,6.20948869]
[1751271172775,5.3191,150.37,150.36,5.60528646]
[1751271173672,33.58,150.4,150.32,11.53008869]
[1751271173673,5.3196,150.35,150.32,11.53008869]
[1751271173979,5.3196,150.35,150.33,5.60340732]
[1751271174278,5.3196,150.35,150.34,5.60340732]
[1751271176176,5.3202,150.34,150.3,8.47268869]
[1751271176376,5.3202,150.34,150.31,5.59583856]
[1751271176679,5.3202,150.34,150.32,5.59583856]
[1751271176877,5.3202,150.34,150.33,5.59583856]
[1751271177181,5.3202,150.34,150.3,5.3212]
[1751271177378,5.3202,150.34,150.31,5.59329594]
[1751271177577,5.3202,150.34,150.32,5.59329594]
[1751271177877,5.3202,150.34,150.3,5.3212]
[1751271178180,33.5,150.36,150.31,5.62537708]
[1751271178481,33.5,150.36,150.32,5.62537708]
[1751271178682,5.3201,150.34,150.3,5.3211]
[1751271178887,5.3201,150.34,150.31,5.62321726]
[1751271179081,5.3201,150.34,150.32,5.62321726]
[1751271179281,5.3201,150.34,150.3,5.3211]
[1751271179483,5.3197,150.35,150.31,5.62108034]
[1751271179789,5.3197,150.35,150.32,5.62108034]
[1751271179983,5.3197,150.35,150.28,6.20948869]
[1751271180179,5.3197,150.35,150.31,5.3209]
[1751271180381,5.32,150.34,150.32,5.62108034]
[1751271180585,5.32,150.34,150.31,5.3209]
[1751271180886,5.32,150.34,150.32,5.62136924]
[1751271181081,5.3203,150.33,150.28,6.20948869]
[1751271181391,5.3203,150.33,150.29,10.94357899]
[1751271181588,5.3207,150.32,150.3,5.62197899]
[1751271181882,33.5,150.36,150.26,2.2325]
[1751271182084,33.5,150.36,150.27,11.82975563]
[1751271182284,5.3201,150.34,150.3,5.3211]
[1751271182484,5.3201,150.34,150.31,5.62026694]
[1751271182690,5.3201,150.34,150.3,5.3211]
[1751271182884,5.3201,150.34,150.31,5.61819698]
[1751271183187,5.3201,150.34,150.3,5.3211]
[1751271183381,5.3204,150.33,150.31,5.62177276]
[1751271183584,33.5,150.36,150.28,6.20948869]
[1751271183781,33.5,150.36,150.29,5.62184451]
[1751271183979,33.5,150.36,150.24,6.20948869]
[1751271184282,4.4802,150.35,150.25,10.94592923]
[1751271184482,4.4802,150.35,150.26,5.62292923]
[1751271184684,5.3219,150.29,150.27,5.62292923]
[1751271184885,5.3219,150.29,150.26,5.3227]
[1751271185080,5.3219,150.29,150.27,5.620137]
[1751271185394,5.3219,150.29,150.26,5.3227]
[1751271185587,5.3219,150.29,150.27,5.61787965]
[1751271185787,5.3219,150.29,150.26,5.3227]
[1751271185988,5.3214,150.3,150.27,10.94027965]
[1751271186192,5.3214,150.3,150.27,5.3224]
[1751271189682,5.3214,150.3,150.23,39.72948869]
[1751271189683,5.3214,150.3,150.26,5.3226]
[1751271189889,5.3214,150.3,150.27,5.62922801]
[1751271190087,5.3214,150.3,150.26,5.3226]
[1751271190282,5.3214,150.3,150.27,5.62968424]
[1751271190489,5.3214,150.3,150.26,5.3226]
[1751271190688,5.3214,150.3,150.27,5.62832088]
[1751271190992,33.52,150.31,150.23,39.72948869]
[1751271191192,33.52,150.31,150.24,5.62832088]
[1751271191493,33.52,150.31,150.27,5.3222]